bitfinex/quotes_BTCUSD_20250727
["timestamp","ask_amount","ask_price","bid_price","bid_amount"]
[1753632075626,0.40501953,118900.0,118890.0,1.023358]
[1753632075857,0.40501953,118900.0,118890.0,0.69176892]
[1753632076087,0.40501953,118900.0,118890.0,0.69276892]
[1753632076307,0.23681096,118900.0,118890.0,0.71484041]
[1753632076497,0.22840054,118900.0,118890.0,0.72325112]
[1753632077201,0.22840054,118900.0,118890.0,0.39904315]
[1753632077454,0.4163096,118900.0,118890.0,0.30777002]
[1753632077672,0.43958953,118900.0,118890.0,0.0864773]
[1753632078128,0.44006276,118900.0,118890.0,0.0864773]
[1753632079543,0.42827276,118900.0,118890.0,0.0864773]
[1753632080529,0.44006276,118900.0,118890.0,0.0864773]
[1753632081239,0.44018276,118900.0,118890.0,0.0864773]
[1753632081475,0.42839276,118900.0,118890.0,0.0864773]
[1753632081720,0.42839276,118900.0,118890.0,0.29804193]
[1753632081942,0.25663026,118900.0,118890.0,0.62847439]
[1753632082172,0.22011005,118900.0,118890.0,0.62847439]
[1753632082407,0.09968012,118900.0,118890.0,0.62847439]
[1753632082629,0.20972019,118900.0,118890.0,0.62847439]
[1753632083084,0.22654047,118900.0,118890.0,0.62847439]
[1753632083321,0.20972019,118900.0,118890.0,0.62847439]
[1753632083541,0.08088019,118900.0,118890.0,0.62847439]
[1753632083758,0.21813019,118900.0,118890.0,0.62847439]
[1753632083987,0.20972019,118900.0,118890.0,0.62847439]
[1753632084435,0.21813026,118900.0,118890.0,0.62847439]
[1753632084669,0.22654047,118900.0,118890.0,0.62847439]
[1753632084867,0.20972019,118900.0,118890.0,0.62847439]
[1753632084991,0.21813026,118900.0,118890.0,0.62847439]
[1753632085869,0.20972019,118900.0,118890.0,0.62847439]
[1753632086101,0.20131026,118900.0,118890.0,0.62847439]
[1753632086344,0.20972012,118900.0,118890.0,0.62847439]
[1753632086820,0.07247026,118900.0,118890.0,0.64592341]
[1753632087057,0.20135026,118900.0,118890.0,0.69649341]
[1753632088012,0.07247026,118900.0,118890.0,0.69649341]
[1753632088213,0.20139026,118900.0,118890.0,1.03649341]
[1753632089270,0.07247026,118900.0,118890.0,1.03649341]
[1753632089741,0.07247026,118900.0,118890.0,1.05689341]
[1753632089952,0.20139026,118900.0,118890.0,1.03649341]
[1753632090167,0.20139026,118900.0,118890.0,0.71972159]
[1753632090391,0.20139026,118900.0,118890.0,0.98592341]
[1753632091294,0.20139026,118900.0,118890.0,0.98676524]
[1753632092439,0.20139026,118900.0,118890.0,0.64676524]
[1753632092666,0.20135026,118900.0,118890.0,1.23605224]
[1753632092895,0.20135026,118900.0,118890.0,1.25645224]
[1753632093312,0.20135026,118900.0,118890.0,1.59645224]
[1753632094149,0.20155026,118900.0,118890.0,1.59645224]
[1753632094368,0.20155026,118900.0,118890.0,1.00516524]
[1753632094589,0.20155026,118900.0,118890.0,1.89268924]
[1753632095865,0.07247026,118900.0,118890.0,1.89268924]
[1753632096211,0.20155026,118900.0,118890.0,1.89268924]
[1753632097069,0.07247026,118900.0,118890.0,1.89268924]
[1753632097293,0.20151026,118900.0,118890.0,1.89268924]
[1753632098181,0.20151026,118900.0,118890.0,1.91794224]
[1753632098901,0.20151026,118900.0,118890.0,2.0291254]
[1753632100241,0.20151026,118900.0,118890.0,2.0543774]
[1753632100484,0.20151026,118900.0,118890.0,2.1049474]
[1753632102481,0.20147026,118900.0,118890.0,2.1049474]
[1753632105431,0.20147026,118900.0,118890.0,1.2174234]
[1753632105653,0.20147026,118900.0,118890.0,3.0162244]
[1753632106447,0.07247026,118900.0,118890.0,3.0162244]
[1753632106680,0.20139026,118900.0,118890.0,3.0162244]
[1753632106890,0.20139026,118900.0,118890.0,3.6068824]
[1753632107878,0.20139026,118900.0,118890.0,3.3893684]
[1753632108374,0.07247026,118900.0,118890.0,3.3893684]
[1753632108602,0.20139026,118900.0,118890.0,3.3893684]
[1753632108831,0.20135026,118900.0,118890.0,3.3893684]
[1753632109484,0.20135026,118900.0,118890.0,3.3918684]
[1753632109695,0.20135026,118900.0,118890.0,3.3893684]
[1753632110158,0.20135026,118900.0,118890.0,3.3689684]
[1753632110415,0.07247026,118900.0,118890.0,3.37168499]
[1753632110626,0.07247026,118900.0,118890.0,3.37168498]
[1753632110813,0.07247026,118900.0,118890.0,3.25360497]
[1753632110949,0.07247026,118900.0,118890.0,3.25360496]
[1753632111366,0.07247026,118900.0,118890.0,3.25360495]
[1753632111576,0.07247026,118900.0,118890.0,2.97360493]
[1753632112016,0.07247026,118900.0,118890.0,2.97360492]
[1753632112670,0.07247026,118900.0,118890.0,2.97360491]
[1753632113110,0.07247026,118900.0,118890.0,2.5358339]
[1753632113333,0.07247026,118900.0,118890.0,2.53583389]
[1753632113788,0.07247026,118900.0,118890.0,2.53583388]
[1753632114459,0.07247026,118900.0,118890.0,2.53583387]
[1753632115131,0.07247026,118900.0,118890.0,2.53583386]
[1753632115352,0.07247026,118900.0,118890.0,2.53583385]
[1753632116028,0.07247026,118900.0,118890.0,2.53583384]
[1753632116461,0.07247026,118900.0,118890.0,2.53583383]
[1753632117556,0.07247026,118900.0,118890.0,2.53583382]
[1753632118442,0.07247026,118900.0,118890.0,2.53583381]
[1753632119098,0.07247026,118900.0,118890.0,2.5358338]
[1753632119587,0.07247026,118900.0,118890.0,2.53583379]
[1753632120627,0.07247026,118900.0,118890.0,1.58728679]
[1753632120829,0.07247026,118900.0,118890.0,1.56244278]
[1753632121741,0.07247026,118900.0,118890.0,1.56244277]
[1753632122508,0.07247026,118900.0,118890.0,1.56244276]
[1753632123363,0.07247026,118900.0,118890.0,1.56244275]
[1753632124028,0.07247026,118900.0,118890.0,1.56244274]
[1753632124680,0.07247026,118900.0,118890.0,2.06950574]
[1753632124887,0.07247026,118900.0,118890.0,1.20223974]
[1753632125093,0.07247026,118900.0,118890.0,2.13545973]
[1753632125718,0.07247026,118900.0,118890.0,1.69790973]
[1753632126292,0.07247026,118900.0,118890.0,1.69790972]
[1753632126681,0.07247026,118900.0,118890.0,1.69790971]
[1753632127550,0.07247026,118900.0,118890.0,1.6979097]
[1753632127967,0.09445026,118900.0,118890.0,1.5383677]
[1753632128175,0.13126991,118900.0,118890.0,1.04269768]
[1753632128386,0.13126991,118900.0,118890.0,1.04269767]
[1753632128595,0.13967984,118900.0,118890.0,1.04269766]
[1753632128799,0.12286005,118900.0,118890.0,1.04269766]
[1753632129002,0.13126998,118900.0,118890.0,0.990318]
[1753632129212,0.32668227,118900.0,118890.0,0.5987581]
[1753632129422,0.3266829,118900.0,118890.0,0.94815925]
[1753632129629,0.3266829,118900.0,118890.0,0.95657017]
[1753632129838,0.3266829,118900.0,118890.0,0.96498094]
[1753632130053,0.15006363,118900.0,118890.0,0.96498037]
[1753632130267,0.14306356,118900.0,118890.0,0.96498037]
[1753632130493,0.13465342,118900.0,118890.0,0.96498037]
[1753632130743,0.13465342,118900.0,118890.0,0.96248036]
[1753632131444,0.13465342,118900.0,118890.0,0.99014036]
[1753632131657,0.14015356,118900.0,118890.0,0.99014036]
[1753632131880,0.14015356,118900.0,118890.0,0.99014035]
[1753632132094,0.13174342,118900.0,118890.0,0.99014035]
[1753632132303,0.14015349,118900.0,118890.0,0.99014035]
[1753632132531,0.13174342,118900.0,118890.0,0.99014035]
[1753632132960,0.14015356,118900.0,118890.0,0.99014035]
[1753632133393,0.14015356,118900.0,118890.0,0.99014034]
[1753632133798,0.14015356,118900.0,118890.0,0.97331899]
[1753632134007,0.14856384,118900.0,118890.0,0.98172984]
[1753632134229,0.32518283,118900.0,118890.0,0.94565898]
[1753632134449,0.14856426,118900.0,118890.0,0.94565898]
[1753632134650,0.15148426,118900.0,118890.0,0.94565898]
[1753632134858,0.31969283,118900.0,118890.0,0.95406983]
[1753632135095,0.31969283,118900.0,118890.0,0.95406976]
[1753632135303,0.31969283,118900.0,118890.0,0.95406982]
[1753632135512,0.31969283,118900.0,118890.0,0.9624806]
[1753632135773,0.15148426,118900.0,118890.0,0.96248025]
[1753632136032,0.14307391,118900.0,118890.0,0.95406926]
[1753632136276,0.14307391,118900.0,118890.0,0.95406925]
[1753632136494,0.14307391,118900.0,118890.0,0.94565854]
[1753632136688,0.14307391,118900.0,118890.0,0.95406918]
[1753632136910,0.63403046,118900.0,118890.0,0.08803529]
[1753632137154,0.63403046,118900.0,118890.0,0.00355799]
[1753632137404,0.30986248,118900.0,118890.0,0.00355798]
[1753632139543,0.30986248,118900.0,118890.0,0.00755798]
[1753632139778,0.30986248,118900.0,118890.0,0.00355798]
[1753632139978,0.30986248,118900.0,118890.0,0.00455798]
[1753632140651,0.30986248,118900.0,118890.0,0.00655798]
[1753632141109,0.30986248,118900.0,118890.0,0.00455798]
[1753632141524,0.30986248,118900.0,118890.0,0.00555798]
[1753632143098,0.63403046,118900.0,118890.0,0.00555798]
[1753632143319,0.30986248,118900.0,118890.0,0.00555798]
[1753632143586,0.13770047,118900.0,118890.0,0.64052846]
[1753632143788,0.42347262,118900.0,118890.0,0.64052852]
[1753632144000,0.42347262,118900.0,118890.0,0.6321178]
[1753632144212,0.25526405,118900.0,118890.0,0.64052844]
[1753632144589,0.41506311,118900.0,118890.0,0.30694982]
[1753632144819,0.40657283,118900.0,118890.0,0.62270695]
[1753632145043,0.40657283,118900.0,118890.0,0.62270694]
[1753632145501,0.40657283,118900.0,118890.0,0.63952857]
[1753632145708,0.40657283,118900.0,118890.0,0.63011786]
[1753632145935,0.40657283,118900.0,118890.0,0.63852871]
[1753632147861,0.40657283,118900.0,118890.0,0.61329595]
[1753632148090,0.39816248,118900.0,118890.0,0.29747163]
[1753632148313,0.39816248,118900.0,118890.0,0.6300506]
[1753632148545,0.26948248,118900.0,118890.0,0.63846152]
[1753632148741,0.39812248,118900.0,118890.0,0.64687237]
[1753632148867,0.26948248,118900.0,118890.0,0.63846152]
[1753632149099,0.38971206,118900.0,118890.0,0.61322855]
[1753632149304,0.26107206,118900.0,118890.0,0.63005073]
[1753632149513,0.38971206,118900.0,118890.0,0.63846165]
[1753632151222,0.41060206,118900.0,118890.0,0.44500582]
[1753632151444,0.41060206,118900.0,118890.0,0.44188582]
[1753632151637,0.41060206,118900.0,118890.0,0.44188581]
[1753632151858,0.41060206,118900.0,118890.0,0.08796783]
[1753632152085,0.41350206,118900.0,118890.0,0.08796783]
[1753632153241,0.40850206,118900.0,118890.0,0.08796783]
[1753632154247,0.41452206,118900.0,118890.0,0.00349053]
[1753632155663,0.41452206,118900.0,118890.0,0.00271609]
[1753632155862,0.40361206,118900.0,118890.0,0.00355797]
[1753632156083,0.38467206,118900.0,118890.0,0.35645595]
[1753632156300,0.38665206,118900.0,118890.0,0.35944594]
[1753632156525,0.40555206,118900.0,118890.0,0.03527796]
[1753632156747,0.40507883,118900.0,118890.0,0.35944594]
[1753632157644,0.40554206,118900.0,118890.0,0.44392323]
[1753632158049,0.39304241,118900.0,118890.0,0.61214595]
[1753632158336,0.39304241,118900.0,118890.0,0.62055708]
[1753632158532,0.39304241,118900.0,118890.0,0.62896813]
[1753632159361,0.39304241,118900.0,118890.0,0.62055707]
[1753632159948,0.39304241,118900.0,118890.0,0.62896805]
[1753632160387,0.39304241,118900.0,118890.0,0.62055706]
[1753632160595,0.39304241,118900.0,118890.0,0.62896812]
[1753632161223,0.39304241,118900.0,118890.0,0.4439232]
[1753632161640,0.39304241,118900.0,118890.0,0.61214592]
[1753632162079,0.39304241,118900.0,118890.0,0.11975522]
[1753632162329,0.39304241,118900.0,118890.0,0.4439232]
[1753632162505,0.39304241,118900.0,118890.0,0.62055705]
[1753632162721,0.39304241,118900.0,118890.0,0.62896811]
[1753632162938,0.07627335,118900.0,118890.0,0.6457896]
[1753632163159,0.40668262,118900.0,118890.0,0.64578973]
[1753632163375,0.40668248,118900.0,118890.0,0.62896809]
[1753632163579,0.41074269,118900.0,118890.0,0.63737908]
[1753632163802,0.39392234,118900.0,118890.0,0.44392318]
[1753632164013,0.41382234,118900.0,118890.0,0.44392318]
[1753632164247,0.41382234,118900.0,118890.0,0.44392317]
[1753632164866,0.41382234,118900.0,118890.0,0.43897317]
[1753632165230,0.41378234,118900.0,118890.0,0.48943317]
[1753632165433,0.41378234,118900.0,118890.0,0.43897317]
[1753632165876,0.41378234,118900.0,118890.0,0.11480519]
[1753632166126,0.41378234,118900.0,118890.0,0.43897317]
[1753632166525,0.41378234,118900.0,118890.0,0.43897316]
[1753632167123,0.41378234,118900.0,118890.0,0.62055687]
[1753632167326,0.39388234,118900.0,118890.0,0.63737864]
[1753632167770,0.39190234,118900.0,118890.0,0.63737864]
[1753632167991,0.39190234,118900.0,118890.0,0.63737863]
[1753632168196,0.39190234,118900.0,118890.0,0.64578934]
[1753632168413,0.39190234,118900.0,118890.0,0.63737863]
[1753632169556,0.39190234,118900.0,118890.0,20.63737862]
[1753632169768,0.24051419,118900.0,118890.0,20.64578929]
[1753632169981,0.21320335,118900.0,118890.0,20.65419982]
[1753632170193,0.22161349,118900.0,118890.0,20.65419973]
[1753632170413,0.22161349,118900.0,118890.0,20.65419968]
[1753632170630,0.22161349,118900.0,118890.0,20.65419966]
[1753632170839,0.22161349,118900.0,118890.0,20.65419965]
[1753632171481,0.23002377,118900.0,118890.0,20.65419965]
[1753632171711,0.40664276,118900.0,118890.0,20.65419964]
[1753632171944,0.40664276,118900.0,118890.0,20.6541996]
[1753632172160,0.40664276,118900.0,118890.0,20.64578895]
[1753632172382,0.3982329,118900.0,118890.0,20.32162095]
[1753632172590,0.3982329,118900.0,118890.0,20.64578893]
[1753632172795,0.22161391,118900.0,118890.0,20.65419956]
[1753632173007,0.23002426,118900.0,118890.0,20.65419955]
[1753632173229,0.21316363,118900.0,118890.0,20.65419953]
[1753632173442,0.22157391,118900.0,118890.0,20.65419953]
[1753632173760,0.39819283,118900.0,118890.0,20.65419952]
[1753632174201,0.39819283,118900.0,118890.0,20.65419951]
[1753632174382,0.22998426,118900.0,118890.0,20.65419951]
[1753632174588,0.40660325,118900.0,118890.0,20.65419951]
[1753632174791,0.22157391,118900.0,118890.0,20.65419949]
[1753632175032,0.22998426,118900.0,118890.0,20.65419948]
[1753632175242,0.40660325,118900.0,118890.0,20.33003149]
[1753632175440,0.40660325,118900.0,118890.0,20.65419946]
[1753632175663,0.38978311,118900.0,118890.0,20.29638836]
[1753632175880,0.40928311,118900.0,118890.0,20.29638835]
[1753632176081,0.40087283,118900.0,118890.0,20.62055639]
[1753632176300,0.3924622,118900.0,118890.0,20.62896724]
[1753632176516,0.41769283,118900.0,118890.0,20.63737788]
[1753632176731,0.41769283,118900.0,118890.0,20.63737802]
[1753632176948,0.41769283,118900.0,118890.0,20.63737801]
[1753632177169,0.41769283,118900.0,118890.0,20.64578872]
[1753632177699,0.41769283,118900.0,118890.0,20.65419935]
[1753632178119,0.41769283,118900.0,118890.0,20.64578871]
[1753632179254,0.4092829,118900.0,118890.0,20.62896722]
[1753632179498,0.40087276,118900.0,118890.0,20.62896735]
[1753632179718,0.39246248,118900.0,118890.0,20.62896735]
[1753632179938,0.40533206,118900.0,118890.0,20.44093258]
[1753632180170,0.40533206,118900.0,118890.0,20.44093257]
[1753632180399,0.40533206,118900.0,118890.0,20.44093256]
[1753632180623,0.40533206,118900.0,118890.0,20.44390256]
[1753632180841,0.40533206,118900.0,118890.0,20.44390255]
[1753632181058,0.40533206,118900.0,118890.0,20.61212527]
[1753632181513,0.40533206,118900.0,118890.0,20.61212526]
[1753632181738,0.40533206,118900.0,118890.0,20.62053639]
[1753632181963,0.40533206,118900.0,118890.0,20.62894738]
[1753632182183,0.40533206,118900.0,118890.0,20.29636841]
[1753632182416,0.40533206,118900.0,118890.0,20.63735844]
[1753632182641,0.40087255,118900.0,118890.0,20.65417971]
[1753632182862,0.40087255,118900.0,118890.0,20.65417929]
[1753632183098,0.40928297,118900.0,118890.0,20.65417928]
[1753632183321,0.23266398,118900.0,118890.0,20.65417928]
[1753632183543,0.40087255,118900.0,118890.0,20.65417928]
[1753632183769,0.24107384,118900.0,118890.0,20.65417928]
[1753632184271,0.42610318,118900.0,118890.0,20.65417928]
[1753632184680,0.41769325,118900.0,118890.0,20.63735793]
[1753632184908,0.41769325,118900.0,118890.0,20.62894715]
[1753632185128,0.41769325,118900.0,118890.0,20.62053623]
[1753632185129,0.40087283,118900.0,118890.0,20.62053623]
[1753632185371,0.40087283,118900.0,118890.0,20.62053636]
[1753632185600,0.40087283,118900.0,118890.0,20.62894742]
[1753632185823,0.06786349,118900.0,118890.0,20.64576905]
[1753632186036,0.19587026,118900.0,118890.0,21.87323668]
[1753632186582,0.19587026,118900.0,118890.0,21.67261167]
[1753632186814,0.06739026,118900.0,118890.0,22.84770869]
[1753632187259,0.06739026,118900.0,118890.0,22.85020868]
[1753632188063,0.06739026,118900.0,118890.0,24.35338667]
[1753632188298,0.06739026,118900.0,118890.0,24.72551465]
[1753632188756,0.06739026,118900.0,118890.0,24.72751465]
[1753632188968,0.06739026,118900.0,118890.0,26.55693665]
[1753632189195,0.06739026,118900.0,118890.0,26.58118765]
[1753632189427,0.06739026,118900.0,118890.0,26.61178076]
[1753632189634,0.06739026,118900.0,118890.0,26.61178075]
[1753632190302,0.06739026,118900.0,118890.0,26.61078075]
[1753632190510,0.06739026,118900.0,118890.0,26.61378075]
[1753632190937,0.06739026,118900.0,118890.0,26.28961277]
[1753632191910,0.06739026,118900.0,118890.0,21.28961277]
[1753632192128,0.06739026,118900.0,118890.0,26.28961277]
[1753632193026,0.06739026,118900.0,118890.0,26.29211277]
[1753632193709,0.06739026,118900.0,118890.0,25.92137777]
[1753632193933,0.06739026,118900.0,118890.0,21.29211277]
[1753632194165,0.06739026,118900.0,118890.0,26.29211277]
[1753632194445,0.06739026,118900.0,118890.0,24.15549877]
[1753632194674,0.06739026,118900.0,118890.0,23.60416666]
[1753632195116,0.06739026,118900.0,118890.0,24.78074065]
[1753632195342,0.06739026,118900.0,118890.0,24.23204065]
[1753632196072,0.06739026,118900.0,118890.0,25.58614065]
[1753632196270,0.06739026,118900.0,118890.0,25.25212565]
[1753632196531,0.06739026,118900.0,118890.0,24.40299665]
[1753632197192,0.06739026,118900.0,118890.0,25.15410065]
[1753632197416,0.06739026,118900.0,118890.0,24.65898765]
[1753632198045,0.06739026,118900.0,118890.0,25.75526265]
[1753632199034,0.06739026,118900.0,118890.0,25.71470165]
[1753632199245,0.06739026,118900.0,118890.0,25.54703465]
[1753632199486,0.06739026,118900.0,118890.0,21.26451965]
[1753632199673,0.06739026,118900.0,118890.0,25.70349765]
[1753632199934,0.06739026,118900.0,118890.0,24.89148765]
[1753632200145,0.06739026,118900.0,118890.0,25.66033765]
[1753632201218,0.06739026,118900.0,118890.0,26.26451965]
[1753632204138,0.06739026,118900.0,118890.0,21.26451965]
[1753632204373,0.06739026,118900.0,118890.0,26.26451965]
[1753632206126,0.06739026,118900.0,118890.0,21.26451965]
[1753632206344,0.06739026,118900.0,118890.0,26.26451965]
[1753632206564,0.06739026,118900.0,118890.0,26.13603965]
[1753632206784,0.06739026,118900.0,118890.0,26.26443964]
[1753632207485,0.06739026,118900.0,118890.0,26.02350464]
[1753632208433,0.06739026,118900.0,118890.0,26.08914964]
[1753632208855,0.06739026,118900.0,118890.0,24.45246464]
[1753632209276,0.06739026,118900.0,118890.0,24.53120764]
[1753632210153,0.06739026,118900.0,118890.0,25.30986564]
[1753632210596,0.06739026,118900.0,118890.0,21.26443964]
[1753632210822,0.06739026,118900.0,118890.0,25.85444564]
[1753632211273,0.06739026,118900.0,118890.0,25.74273164]
[1753632211704,0.06739026,118900.0,118890.0,25.61490264]
[1753632211940,0.06739026,118900.0,118890.0,25.46474476]
[1753632212122,0.06739026,118900.0,118890.0,25.46558636]
[1753632212356,0.06739026,118900.0,118890.0,25.73114736]
[1753632212584,0.06739026,118900.0,118890.0,24.52372136]
[1753632213152,0.06739026,118900.0,118890.0,24.52455824]
[1753632213378,0.06739026,118900.0,118890.0,25.90218923]
[1753632213626,0.06739026,118900.0,118890.0,25.90525623]
[1753632213840,0.06739026,118900.0,118890.0,25.07630523]
[1753632214288,0.06739026,118900.0,118890.0,25.58315823]
[1753632214502,0.06739026,118900.0,118890.0,24.66955523]
[1753632214716,0.06739026,118900.0,118890.0,22.48466023]
[1753632214963,0.06739026,118900.0,118890.0,23.01168823]
[1753632215217,0.06739026,118900.0,118890.0,22.98656323]
[1753632215470,0.06739026,118900.0,118890.0,23.01691023]
[1753632216339,0.06739026,118900.0,118890.0,24.85582123]
[1753632216555,0.06739026,118900.0,118890.0,24.61815323]
[1753632216899,0.06739026,118900.0,118890.0,24.48975323]
[1753632217099,0.06739026,118900.0,118890.0,24.14282423]
[1753632217312,0.06739026,118900.0,118890.0,25.76040523]
[1753632218385,0.06739026,118900.0,118890.0,26.07270223]
[1753632219416,0.06739026,118900.0,118890.0,26.24002523]
[1753632220307,0.06739026,118900.0,118890.0,21.24002523]
[1753632220546,0.06739026,118900.0,118890.0,26.24002523]
[1753632226803,0.06739026,118900.0,118890.0,26.43477288]
[1753632227766,0.06739026,118900.0,118890.0,21.43477288]
[1753632227975,0.06739026,118900.0,118890.0,26.24002523]
[1753632228384,0.06739026,118900.0,118890.0,21.24002523]
[1753632228589,0.06739026,118900.0,118890.0,26.24002523]
[1753632229435,0.06739026,118900.0,118890.0,25.96702323]
[1753632229644,0.06739026,118900.0,118890.0,25.93310023]
[1753632230535,0.06739026,118900.0,118890.0,26.17819123]
[1753632231553,0.06739026,118900.0,118890.0,26.24002523]
[1753632232297,0.06739026,118900.0,118890.0,25.95783323]
[1753632232513,0.06739026,118900.0,118890.0,24.20188923]
[1753632232726,0.06739026,118900.0,118890.0,24.08877922]
[1753632232940,0.06718108,118900.0,118890.0,24.08877922]
[1753632233575,0.06718108,118900.0,118890.0,24.90166222]
[1753632233992,0.06718108,118900.0,118890.0,24.88146222]
[1753632234184,0.06718108,118900.0,118890.0,24.80858422]
[1753632234577,0.06718108,118900.0,118890.0,21.21978522]
[1753632234819,0.06718108,118900.0,118890.0,24.92924822]
[1753632235249,0.06718108,118900.0,118890.0,24.64467822]
[1753632235479,0.00679803,118910.0,118900.0,3.74043295]
[1753632235710,0.00679803,118910.0,118900.0,3.49230441]
[1753632235928,0.00679803,118910.0,118900.0,3.52292441]
[1753632236391,0.0604557,118920.0,118910.0,6.23112445]
[1753632236620,0.0402557,118920.0,118910.0,6.47813388]
[1753632236839,0.0402557,118920.0,118910.0,6.47827898]
[1753632237047,0.0402557,118920.0,118910.0,6.47827897]
[1753632237265,0.0402557,118920.0,118910.0,6.49747897]
[1753632237494,0.0402557,118920.0,118910.0,6.5619205]
[1753632237747,0.01763739,118930.0,118920.0,6.31578126]
[1753632237952,0.01263739,118930.0,118920.0,6.53426066]
[1753632238183,1e-08,118930.0,118920.0,6.61481742]
[1753632238410,0.03831403,118950.0,118940.0,0.24383393]
[1753632238635,0.04029403,118950.0,118940.0,3.27570129]
[1753632238838,0.06099403,118950.0,118940.0,3.14720229]
[1753632239028,0.06099403,118950.0,118940.0,3.17280228]
[1753632239251,0.06099403,118950.0,118940.0,3.03140128]
[1753632239479,0.04029403,118950.0,118940.0,3.36058926]
[1753632239687,0.03831403,118950.0,118940.0,4.00589725]
[1753632239824,0.03831403,118950.0,118940.0,3.97887424]
[1753632240041,0.01811403,118950.0,118940.0,3.96630724]
[1753632240261,0.01811403,118950.0,118940.0,3.41293624]
[1753632240469,0.03999403,118950.0,118940.0,2.86399102]
[1753632240696,0.03999403,118950.0,118940.0,2.90896001]
[1753632241110,0.03999403,118950.0,118940.0,2.87478801]
[1753632241720,0.01811403,118950.0,118940.0,3.59825801]
[1753632242200,0.00970276,118950.0,118940.0,4.31947501]
[1753632242409,0.00970276,118950.0,118940.0,4.300075]
[1753632242616,0.00129149,118950.0,118940.0,4.30007499]
[1753632242835,0.00129149,118950.0,118940.0,6.08829598]
[1753632243040,0.00408167,118960.0,118950.0,0.92980267]
[1753632243243,0.00408167,118960.0,118950.0,5.51599997]
[1753632243447,0.00408167,118960.0,118950.0,5.51599996]
[1753632243665,0.00408167,118960.0,118950.0,6.19621196]
[1753632243907,0.00408167,118960.0,118950.0,4.19576095]
[1753632244104,0.00408167,118960.0,118950.0,4.17636094]
[1753632244313,0.00408167,118960.0,118950.0,4.1765062]
[1753632244515,0.00408167,118960.0,118950.0,4.1563062]
[1753632244732,0.00408167,118960.0,118950.0,5.02020219]
[1753632245105,0.00408167,118960.0,118950.0,4.86458019]
[1753632245337,0.00408167,118960.0,118950.0,4.70247818]
[1753632245752,0.00408167,118960.0,118950.0,5.30297017]
[1753632245963,0.00408167,118960.0,118950.0,5.31155334]
[1753632246177,0.00408167,118960.0,118950.0,5.33365333]
[1753632246444,0.00408167,118960.0,118950.0,5.33365332]
[1753632246635,0.00408167,118960.0,118950.0,1.20644031]
[1753632246830,0.00408167,118960.0,118950.0,6.20644031]
[1753632247235,0.00408167,118960.0,118950.0,6.2064403]
[1753632247448,0.00408167,118960.0,118950.0,5.6850873]
[1753632247866,0.00408167,118960.0,118950.0,6.18684029]
[1753632248100,0.00408167,118960.0,118950.0,5.87125828]
[1753632248312,0.00408167,118960.0,118950.0,5.69351828]
[1753632248517,0.00408167,118960.0,118950.0,5.71281827]
[1753632248900,0.00408167,118960.0,118950.0,6.54614027]
[1753632249251,0.00408167,118960.0,118950.0,5.73064827]
[1753632249454,0.00408167,118960.0,118950.0,5.48989226]
[1753632249685,0.0032,118970.0,118960.0,3.07160241]
[1753632249915,0.0032,118970.0,118960.0,3.87288471]
[1753632250128,0.02304132,118980.0,118970.0,1.66839085]
[1753632250346,0.04412132,118980.0,118970.0,1.88368815]
[1753632250566,0.04412132,118980.0,118970.0,1.90928815]
[1753632251064,0.23656907,118980.0,118970.0,0.90849628]
[1753632251270,0.23656907,118980.0,118970.0,0.0844773]
[1753632251703,0.23656907,118980.0,118970.0,0.40864528]
[1753632252177,0.36488907,118980.0,118970.0,0.0844773]
[1753632252399,0.36488907,118980.0,118970.0,0.40864528]
[1753632252874,0.36488907,118980.0,118970.0,0.0844773]
[1753632253101,0.22390883,118960.0,118950.0,0.70073469]
[1753632253318,0.22589883,118960.0,118950.0,1.0052986]
[1753632253536,0.22589883,118960.0,118950.0,1.00529859]
[1753632253754,0.06618121,118960.0,118950.0,1.63525859]
[1753632253991,0.06618037,118960.0,118950.0,1.32267609]
[1753632254207,0.06618037,118960.0,118950.0,1.89387609]
[1753632254424,0.04096323,118960.0,118950.0,1.92852607]
[1753632254829,0.04049,118960.0,118950.0,2.81783106]
[1753632255054,0.0385,118960.0,118950.0,2.83528008]
[1753632255515,0.01728312,118970.0,118960.0,3.43192945]
[1753632255516,0.0207,118970.0,118960.0,3.43192945]
[1753632255744,0.02384132,118980.0,118970.0,1.99725287]
[1753632255962,0.02384132,118980.0,118970.0,2.28088815]
[1753632256180,0.02582132,118980.0,118970.0,2.28088815]
[1753632256398,0.00314132,118980.0,118970.0,2.28088815]
[1753632256618,0.00314132,118980.0,118970.0,3.93477415]
[1753632256850,0.00314132,118980.0,118970.0,3.79477415]
[1753632257048,0.02384132,118980.0,118970.0,3.79477415]
[1753632257719,0.02384132,118980.0,118970.0,4.05918615]
[1753632257924,0.00314132,118980.0,118970.0,4.05918615]
[1753632258775,0.00314132,118980.0,118970.0,4.61976115]
[1753632259229,1.45019902,119000.0,118980.0,0.0387]
[1753632259230,1.09711589,119000.0,118980.0,0.0387]
[1753632259398,0.00503854,119020.0,118990.0,6.64931229]
[1753632259586,0.0036139,119030.0,119020.0,0.57869298]
[1753632259782,0.00404956,119040.0,119030.0,0.62820352]
[1753632260025,0.00764895,119070.0,119060.0,4.0789066]
[1753632260176,0.00764895,119070.0,119060.0,4.42366155]
[1753632260376,0.00087932,119080.0,119070.0,2.92409182]
[1753632260599,0.00087932,119080.0,119070.0,0.7310081]
[1753632260807,0.00087932,119080.0,119070.0,0.72248094]
[1753632260808,0.02599932,119080.0,119070.0,0.72248094]
[1753632261007,0.02923932,119080.0,119070.0,2.69139412]
[1753632261213,0.04993932,119080.0,119070.0,1.82731609]
[1753632261414,0.04993932,119080.0,119070.0,1.53653339]
[1753632261415,0.26358606,119080.0,119070.0,1.53653339]
[1753632261614,0.08723369,119080.0,119070.0,1.53653339]
[1753632261866,0.10402862,119080.0,119070.0,1.53653339]
[1753632262062,0.27198286,119080.0,119070.0,1.38853737]
[1753632262277,0.25566193,119080.0,119070.0,1.14183837]
[1753632262482,0.26405964,119080.0,119070.0,0.55343737]
[1753632262696,0.26405964,119080.0,119070.0,1.28527237]
[1753632262927,0.25566214,119080.0,119070.0,0.19761037]
[1753632263128,0.25566214,119080.0,119070.0,0.63895737]
[1753632263555,0.24726457,119080.0,119070.0,1.45814137]
[1753632264040,0.24726457,119080.0,119070.0,1.36264637]
[1753632264295,0.07883675,119080.0,119070.0,1.37964514]
[1753632264526,0.09563161,119080.0,119070.0,2.49055475]
[1753632264743,0.09563161,119080.0,119070.0,2.35778067]
[1753632264973,0.00087932,119080.0,119070.0,2.35778067]
[1753632265201,0.00087932,119080.0,119070.0,3.97516969]
[1753632265430,0.05244932,119080.0,119070.0,3.83516969]
[1753632265658,0.06325605,119080.0,119070.0,2.97545803]
[1753632265876,0.09195313,119080.0,119070.0,1.62356303]
[1753632266287,0.08355605,119080.0,119070.0,1.62356303]
[1753632266538,0.0846397,119080.0,119070.0,1.03219523]
[1753632266726,0.07624255,119080.0,119070.0,1.04059315]
[1753632266948,0.07624255,119080.0,119070.0,2.82117715]
[1753632267186,0.07624255,119080.0,119070.0,2.04854715]
[1753632267617,0.09303706,119080.0,119070.0,1.84642915]
[1753632268066,0.21375963,119080.0,119070.0,1.82673515]
[1753632268286,0.22215685,119080.0,119070.0,1.82673515]
[1753632268722,0.21375963,119080.0,119070.0,1.82673515]